bitfinex/quotes_ETHUSD_20230110
["timestamp","ask_amount","ask_price","bid_price","bid_amount"]
[1673362755804,0.066,1332.4,1332.1,11.30421064]
[1673362756049,7.63622,1332.5,1332.1,11.37021064]
[1673362756050,15.07588,1332.5,1332.1,11.37021064]
[1673362756261,7.57092,1332.5,1332.1,11.37021064]
[1673362756446,7.57092,1332.5,1332.1,18.87715064]
[1673362756447,0.1973,1332.5,1332.1,18.87715064]
[1673362756673,37.09616,1332.6,1332.1,29.66013027]
[1673362757005,37.09616,1332.6,1332.1,22.15319027]
[1673362757006,44.60066,1332.6,1332.1,22.15319027]
[1673362757228,3.0,1332.5,1332.1,22.15319027]
[1673362757434,10.50484,1332.5,1332.1,22.16964758]
[1673362757596,10.57084,1332.5,1332.1,22.16964758]
[1673362758259,3.066,1332.5,1332.1,29.67658758]
[1673362758427,3.0,1332.5,1332.1,22.16964758]
[1673362758966,10.50469,1332.5,1332.1,22.16964758]
[1673362759324,3.066,1332.5,1332.1,14.66270758]
[1673362759490,3.0,1332.5,1332.1,29.67658758]
[1673362759874,3.0,1332.5,1332.1,22.16964758]
[1673362760087,3.0,1332.5,1332.1,29.67658758]
[1673362760552,14.2795,1332.6,1332.1,22.16964758]
[1673362760918,36.79214,1332.6,1332.1,14.66270758]
[1673362761546,42.39606625,1332.6,1332.1,0.08245731]
[1673362761757,0.1365,1332.5,1332.1,0.01645731]
[1673362761975,7.50532,1332.4,1332.1,0.01645731]
[1673362762163,0.066,1332.4,1332.1,18.82795795]
[1673362762382,15.01023,1332.5,1332.1,11.38701795]
[1673362762705,7.50533,1332.4,1332.1,5.91195535]
[1673362762917,7.57133,1332.4,1332.1,5.91195535]
[1673362763134,7.57133,1332.4,1332.1,5.90995535]
[1673362763282,16.89192561,1332.4,1332.1,0.08245731]
[1673362763492,24.39725561,1332.4,1332.1,0.01645731]
[1673362763709,2.5,1332.3,1332.1,0.01645731]
[1673362764044,24.39725561,1332.4,1332.1,0.01645731]
[1673362764045,16.89192561,1332.4,1332.1,0.01645731]
[1673362764246,24.39725561,1332.4,1332.1,0.01645731]
[1673362764460,2.5,1332.3,1332.1,0.01645731]
[1673362764695,15.01214,1332.3,1332.1,0.01645731]
[1673362764917,2.5,1332.2,1332.1,0.01645731]
[1673362765079,0.51302593,1332.2,1332.1,0.01645731]
[1673362765299,17.31378593,1332.2,1332.0,1.42412604]
[1673362765510,24.88616593,1332.2,1332.0,1.42412604]
[1673362768226,24.32082,1332.1,1332.0,1.42412604]
[1673362768436,24.38682,1332.1,1332.0,1.42412604]
[1673362769713,1.866,1332.1,1332.0,1.42412604]
[1673362769919,1.8,1332.1,1332.0,8.93162604]
[1673362770137,3.21266561,1332.2,1332.0,1.49012604]
[1673362770347,10.65314561,1332.2,1332.0,1.42412604]
[1673362770558,3.1974,1332.2,1332.0,1.42412604]
[1673362770766,3.1314,1332.2,1332.0,1.42412604]
[1673362771088,3.0,1332.2,1332.0,1.42412604]
[1673362771954,3.0,1332.2,1332.0,9.83133264]
[1673362772170,3.1973,1332.3,1332.0,9.89733264]
[1673362772357,3.1313,1332.3,1332.0,9.89733264]
[1673362772744,10.63712,1332.3,1332.0,9.89733264]
[1673362773008,10.70312,1332.3,1332.0,9.89733264]
[1673362773217,0.066,1332.3,1332.0,21.20249328]
[1673362773378,17.58004,1332.4,1332.0,21.20249328]
[1673362773379,0.066,1332.4,1332.1,1.86272079]
[1673362773589,7.57071,1332.5,1332.1,11.78832841]
[1673362773829,7.57071,1332.5,1332.1,9.99160762]
[1673362774023,15.07577,1332.5,1332.1,9.99160762]
[1673362774233,22.58083,1332.5,1332.1,2.48472762]
[1673362774437,24.36683,1332.5,1332.1,2.41872762]
[1673362774657,24.36683,1332.5,1332.0,7.30962541]
[1673362775914,22.51776,1332.3,1332.0,6.18756328]
[1673362776137,22.58376,1332.3,1332.0,6.18756328]
[1673362776791,22.58376,1332.3,1332.0,2.38990264]
[1673362776999,22.58376,1332.3,1332.0,2.32390264]
[1673362777323,15.07784,1332.3,1332.0,2.32390264]
[1673362777545,15.07784,1332.3,1332.1,1.86274173]
[1673362777546,0.066,1332.3,1332.1,1.86274173]
[1673362777856,7.58687561,1332.4,1332.1,1.86274173]
[1673362778211,7.58687561,1332.4,1332.0,26.03417477]
[1673362778419,22.59791561,1332.4,1332.0,3.51196477]
[1673362778670,22.59791561,1332.4,1332.0,3.44596477]
[1673362779267,22.59791561,1332.4,1332.0,3.46169058]
[1673362779473,0.066,1332.4,1332.1,1.86268674]
[1673362779688,1.8,1332.5,1332.1,21.16256667]
[1673362779689,3.0,1332.5,1332.1,21.16256667]
[1673362779933,3.0,1332.5,1332.1,11.87475456]
[1673362779934,10.50472,1332.5,1332.1,11.87475456]
[1673362780146,18.07544,1332.5,1332.1,10.75303243]
[1673362780472,25.58016,1332.5,1332.1,3.24617243]
[1673362780630,25.58016,1332.5,1332.1,3.18017243]
[1673362781192,3.066,1332.5,1332.1,29.49854307]
[1673362781365,3.0,1332.5,1332.1,32.35901846]
[1673362781579,10.50469,1332.5,1332.1,24.85207846]
[1673362781849,10.57069,1332.5,1332.1,22.05760307]
[1673362782435,18.07538,1332.5,1332.1,24.85207846]
[1673362782643,18.07538,1332.5,1332.1,22.05760307]
[1673362782846,10.57069,1332.5,1332.2,1.86259842]
[1673362783066,0.066,1332.5,1332.2,15.67070542]
[1673362783293,38.4782,1332.8,1332.3,5.66025906]
[1673362783623,22.2847,1332.8,1332.4,16.87251609]
[1673362783830,22.2847,1332.8,1332.4,15.07623]
[1673362784199,14.2125,1332.8,1332.4,15.07623]
[1673362784439,14.2125,1332.8,1332.4,18.12880382]
[1673362784988,14.2125,1332.8,1332.4,25.63405382]
[1673362785510,14.2125,1332.8,1332.4,21.92646446]
[1673362785723,14.2125,1332.8,1332.4,29.43171446]
[1673362786250,21.71557,1332.8,1332.4,21.92646446]
[1673362786613,29.21864,1332.8,1332.4,21.92646446]
[1673362786885,21.71557,1332.8,1332.4,21.92646446]
[1673362787505,21.7156,1332.8,1332.4,21.92646446]
[1673362787823,14.2125,1332.8,1332.4,29.43171446]
[1673362787996,13.99032257,1332.8,1332.4,29.43171446]
[1673362789487,0.066,1332.8,1332.4,29.43171446]
[1673362789663,8.2099,1332.9,1332.4,29.43171446]
[1673362790121,15.71233,1332.9,1332.4,29.43171446]
[1673362790448,28.83179561,1332.9,1332.4,29.44700013]
[1673362790768,2.5,1332.8,1332.4,21.94175013]
[1673362790972,17.50645,1332.8,1332.4,14.43650013]
[1673362791181,17.57245,1332.8,1332.4,14.43650013]
[1673362791384,17.58771561,1332.8,1332.4,0.08128567]
[1673362791569,35.36696385,1332.8,1332.4,0.01528567]
[1673362791776,37.16696385,1332.8,1332.4,0.01528567]
[1673362796177,40.96462449,1332.8,1332.2,6.1554]
[1673362796389,44.46225331,1332.8,1332.2,6.1554]
[1673362796966,22.16018385,1332.8,1332.2,24.96576064]
[1673362797122,17.58738561,1332.8,1332.3,3.79766064]
[1673362797547,17.58738561,1332.8,1332.3,30.1911522]
[1673362797713,17.58738561,1332.8,1332.3,30.2571522]
[1673362799809,7.58426561,1332.8,1332.3,30.27186204]
[1673362800023,0.08126561,1332.8,1332.3,30.27186204]
[1673362800234,3.01526561,1332.8,1332.3,30.27186204]
[1673362800453,43.88320824,1332.9,1332.4,9.15976363]
[1673362800454,7.56868,1332.9,1332.4,9.15976363]
[1673362800640,0.066,1332.9,1332.6,22.5121]
[1673362800807,7.6207595,1333.0,1332.6,18.87168064]
[1673362801021,15.1888895,1333.0,1332.6,18.87168064]
[1673362801248,15.1888895,1333.0,1332.6,0.066]
[1673362801249,28.9624645,1333.0,1332.6,0.066]
[1673362801482,25.46381774,1333.0,1332.5,5.8946]
[1673362801768,24.30911,1332.8,1332.5,5.8946]
[1673362801965,4.3,1332.7,1332.5,0.066]
[1673362802175,16.8077,1332.7,1332.4,0.066]
[1673362802437,24.37755,1332.7,1332.3,7.5203814]
[1673362802646,0.066,1332.7,1332.4,18.80816064]
[1673362802806,1.794,1332.8,1332.4,21.75701484]
[1673362803016,9.2971,1332.8,1332.4,14.25176484]
[1673362803338,9.3631,1332.8,1332.4,14.25176484]
[1673362803973,16.8662,1332.8,1332.4,14.25176484]
[1673362804546,16.8662,1332.8,1332.4,0.066]
[1673362804547,1.788,1332.7,1332.4,0.066]
[1673362804703,24.30336,1332.6,1332.3,0.01470984]
[1673362805117,24.36936,1332.6,1332.3,3.81237048]
[1673362805459,22.57836,1332.6,1332.3,3.81237048]
[1673362806229,22.57836,1332.6,1332.3,4.95082353]
[1673362806405,7.57012,1332.6,1332.3,4.95082353]
[1673362806616,0.066,1332.6,1332.3,12.45658353]
[1673362806826,22.59304561,1332.7,1332.3,12.52258353]
[1673362807040,15.08893561,1332.7,1332.3,12.52258353]
[1673362807253,0.08126561,1332.7,1332.3,12.52258353]
[1673362807493,21.617,1332.8,1332.4,3.79766064]
[1673362807649,0.066,1332.8,1332.5,3.79766064]
[1673362807860,7.50248,1332.9,1332.6,3.81592645]
[1673362808107,15.07096,1332.9,1332.6,3.81592645]
[1673362808385,7.56848,1332.9,1332.6,4.2041191]
[1673362808596,22.57339,1332.9,1332.6,4.2041191]
[1673362810908,22.57339,1332.9,1332.6,3.79445884]
[1673362811113,30.07587,1332.9,1332.5,0.066]
[1673362811328,36.34285409,1332.9,1332.4,17.5863]
[1673362811541,1.35,1332.6,1332.4,6.2293]
[1673362811863,7.50469,1332.5,1332.4,0.066]
[1673362812063,7.57069,1332.5,1332.2,5.00816213]
[1673362812315,7.57069,1332.5,1332.3,5.66000715]
[1673362812489,7.57069,1332.5,1332.3,3.86366064]
[1673362812691,7.57069,1332.5,1332.3,3.79766064]
[1673362812902,0.066,1332.5,1332.3,3.79766064]
[1673362813145,16.35893,1332.6,1332.3,3.79766064]
[1673362813146,23.92941,1332.6,1332.3,3.79766064]
[1673362813359,23.94467561,1332.6,1332.5,0.066]
[1673362817101,25.28367561,1332.6,1332.5,0.066]
[1673362823536,28.05647385,1332.6,1332.5,0.066]
[1673362824110,30.1323062,1332.6,1332.1,6.2746]
[1673362824320,1.337,1332.2,1332.1,0.066]
[1673362824538,1.337,1332.2,1332.1,1.86274223]
[1673362824697,7.50638,1332.2,1332.1,1.86274175]
[1673362824901,7.57238,1332.2,1332.0,2.61218817]
[1673362825113,7.57238,1332.2,1332.1,1.86274225]
[1673362825356,15.07876,1332.2,1332.0,5.74505016]
[1673362825644,15.07876,1332.2,1332.0,1.94738952]
[1673362825645,22.58514,1332.2,1332.0,1.94738952]
[1673362825868,22.58514,1332.2,1331.9,3.51495513]
[1673362826167,22.58514,1332.2,1332.0,1.86278577]
[1673362826411,1.35,1332.1,1331.9,1.26856193]
[1673362826583,1.35,1332.1,1331.9,0.0804998]
[1673362826792,24.899108,1332.1,1331.9,0.0804998]
[1673362827021,24.965108,1332.1,1331.9,0.0804998]
[1673362828182,5.21126561,1332.0,1331.9,0.0804998]
[1673362828409,27.79976561,1332.0,1331.9,0.0804998]
[1673362829040,25.29976561,1332.0,1331.9,0.0804998]
[1673362829250,27.17201864,1332.0,1331.9,0.0804998]
[1673362830494,35.01999418,1332.0,1331.9,0.0804998]
[1673362830935,12.14075303,1332.0,1331.9,0.0804998]
[1673362831168,1.415,1332.0,1331.9,0.0804998]
[1673362831496,1.349,1332.0,1331.9,0.0804998]
[1673362831692,16.364,1332.0,1331.9,0.0804998]
[1673362831841,23.9375,1332.0,1331.9,0.0804998]
[1673362832057,25.2875,1332.0,1331.9,0.0804998]
[1673362833048,0.066,1332.0,1331.9,1.0964998]
[1673362833221,19.35241,1332.1,1331.9,0.0804998]
[1673362833433,15.015,1332.0,1331.9,0.0804998]
[1673362833659,22.5885,1332.0,1331.9,0.0804998]
[1673362834211,23.9385,1332.0,1331.9,0.0804998]
[1673362836727,16.431,1332.0,1331.9,0.0804998]
[1673362836888,8.9235,1332.0,1331.9,0.0804998]
[1673362837099,1.416,1332.0,1331.9,1.0964998]
[1673362837377,0.066,1332.1,1331.9,1.0964998]
[1673362837521,0.066,1332.2,1332.0,5.21366063]
[1673362837735,15.01332,1332.2,1332.0,5.27966063]
[1673362837989,15.07932,1332.2,1332.0,5.28381079]
[1673362838202,7.57256,1332.2,1332.0,5.28381079]
[1673362838532,22.58608,1332.2,1332.0,1.48615015]
[1673362838837,22.58608,1332.2,1332.0,1.42015015]
[1673362838838,7.57239,1332.2,1332.0,1.42015015]
[1673362839562,7.57266,1332.2,1332.0,1.67055764]
[1673362839776,15.07932,1332.2,1332.0,1.67055764]
[1673362840088,22.58598,1332.2,1332.0,1.40072247]
[1673362840279,15.07932,1332.2,1332.0,1.40072247]
[1673362840693,0.066,1332.2,1332.0,8.90822247]
[1673362841037,7.50601,1332.3,1332.0,5.26438311]
[1673362841257,15.07806,1332.3,1332.0,6.8999839]
[1673362841408,22.58425,1332.3,1332.0,3.10232326]
[1673362841615,22.58425,1332.3,1332.0,1.40072247]
[1673362844189,15.07806,1332.3,1332.0,1.40072247]
[1673362844409,0.066,1332.3,1332.0,21.55723311]
[1673362844562,7.50581,1332.3,1332.0,14.11573311]
[1673362844928,7.57181,1332.3,1332.0,10.0589605]
[1673362845541,22.58343,1332.3,1332.0,8.7149605]
[1673362845875,7.57181,1332.3,1332.0,5.26438311]
[1673362846245,15.07762,1332.3,1332.0,5.26438311]
[1673362846974,22.58343,1332.3,1332.0,1.46672247]
[1673362847187,22.58343,1332.3,1332.0,1.40072247]
[1673362847625,23.85882,1332.1,1332.0,1.39657231]
[1673362847869,23.92482,1332.1,1332.0,1.39657231]
[1673362848654,1.404,1332.1,1332.0,1.39657231]
[1673362849031,10.58780561,1332.2,1332.0,1.39657231]
[1673362849202,12.53210517,1332.2,1332.0,1.39657231]
[1673362849624,20.03854517,1332.2,1332.0,1.39657231]
[1673362849814,27.54498517,1332.2,1332.0,1.39657231]
[1673362851421,1.35,1332.1,1332.0,1.39657231]
[1673362851636,23.87082,1332.1,1332.0,1.39657231]
[1673362851846,24.89191147,1332.1,1332.0,1.39657231]
[1673362852865,24.89191147,1332.1,1332.0,1.38847515]
[1673362855116,27.89191147,1332.1,1332.0,1.38847515]
[1673362855342,36.53957211,1332.1,1332.0,1.38847515]
[1673362855715,33.03957211,1332.1,1332.0,1.38847515]
[1673362857922,31.68957211,1332.1,1332.0,1.38847515]
[1673362858382,35.18957211,1332.1,1332.0,1.38847515]
[1673362858607,36.52857211,1332.1,1332.0,1.38847515]
[1673362859196,36.52857211,1332.1,1331.9,0.0804998]
[1673362859403,39.36981767,1332.0,1331.9,0.0804998]
[1673362859654,41.38021723,1332.0,1331.9,0.0804998]
[1673362860156,37.8805602,1332.0,1331.9,0.0804998]
[1673362860758,37.9000002,1332.0,1331.9,0.0804998]
[1673362860967,41.39965989,1332.0,1331.9,0.0804998]
[1673362861230,37.9000002,1332.0,1331.9,0.0804998]
[1673362861593,41.39965937,1332.0,1331.9,0.0804998]
[1673362862069,35.4000002,1332.0,1331.9,0.0804998]
[1673362862769,28.90233956,1332.0,1331.9,0.0804998]
[1673362862966,26.95794,1332.0,1331.9,0.0804998]
[1673362863177,19.45044,1332.0,1331.9,0.0804998]
[1673362863615,26.95794,1332.0,1331.9,0.0804998]
[1673362864383,7.5735,1332.0,1331.9,1.0964998]
[1673362864537,29.02189,1332.1,1332.0,1.05183925]
[1673362864750,22.58764,1332.1,1332.0,1.05183925]
[1673362866375,22.58764,1332.1,1332.0,1.04270825]
[1673362866971,27.73530064,1332.1,1332.0,1.04270825]
[1673362867846,30.73530064,1332.1,1332.0,1.04270825]
[1673362868458,39.14804556,1332.1,1332.0,1.04270825]
[1673362869053,34.91092631,1332.1,1332.0,1.04270825]
[1673362869313,31.11326567,1332.1,1332.0,1.04270825]
[1673362869536,26.93764,1332.1,1332.0,1.04270825]
[1673362869717,26.97348,1332.1,1332.0,1.04270825]
[1673362870847,25.62348,1332.1,1332.0,1.04270825]
[1673362871053,25.58764,1332.1,1332.0,1.04270825]
[1673362871848,0.066,1332.1,1332.0,1.04270825]
[1673362872004,7.54541,1332.2,1332.0,1.15502906]
[1673362872005,15.11823,1332.2,1332.0,1.15502906]
[1673362872215,7.57263,1332.2,1332.0,1.15502906]
[1673362872422,15.0793,1332.2,1332.0,1.15502906]
[1673362872631,7.57263,1332.2,1332.0,1.04270825]
[1673362873435,15.0793,1332.2,1332.0,1.04270825]
[1673362874005,0.066,1332.2,1332.0,1.04270825]
[1673362874217,3.0,1332.2,1332.0,1.04270825]
[1673362874682,10.50648,1332.2,1332.0,1.04270825]
[1673362874896,10.57248,1332.2,1332.0,1.04270825]
[1673362875210,10.57247,1332.2,1332.0,1.04270825]
[1673362875419,18.07894,1332.2,1332.0,1.04270825]
[1673362875636,25.58541,1332.2,1332.0,1.04270825]
[1673362876456,18.07894,1332.2,1332.0,1.04270825]
[1673362876650,25.58541,1332.2,1332.0,1.04270825]
[1673362877698,3.066,1332.2,1332.0,1.04270825]
[1673362877913,18.01308,1332.2,1332.0,1.04270825]
[1673362878124,25.58562,1332.2,1332.0,1.04270825]
[1673362879594,32.18301631,1332.2,1332.0,1.04270825]
[1673362879803,30.72928064,1332.2,1332.0,1.04270825]
[1673362880014,33.52901631,1332.2,1332.0,1.04270825]
[1673362880333,1.35,1332.1,1332.0,1.04270825]
[1673362880554,23.87082,1332.1,1332.0,1.04270825]
[1673362880866,26.93682,1332.1,1332.0,1.04270825]
[1673362882373,11.92294,1332.1,1332.0,1.04270825]
[1673362882900,26.93682,1332.1,1332.0,1.04270825]
[1673362883225,37.05426136,1332.1,1332.0,8.25e-06]
[1673362883381,51.17232037,1332.1,1332.0,8.25e-06]
[1673362883691,51.18758598,1332.1,1332.0,8.25e-06]
[1673362884338,47.70271093,1332.1,1332.0,8.25e-06]
[1673362884571,23.27797625,1332.1,1332.0,8.25e-06]
[1673362884775,19.48031561,1332.1,1332.0,8.25e-06]
[1673362884983,26.95208561,1332.1,1332.0,8.25e-06]
[1673362885197,18.07988,1332.1,1332.0,8.25e-06]
[1673362885579,3.066,1332.1,1332.0,8.25e-06]
[1673362885789,15.07933,1332.2,1332.0,8.25e-06]
[1673362886315,0.066,1332.2,1332.0,8.25e-06]
[1673362886534,3.002,1332.2,1332.0,0.00548791]
[1673362886876,3.0,1332.2,1332.0,0.00548791]
[1673362887060,18.01294,1332.2,1332.0,0.00548791]
[1673362887264,18.07894,1332.2,1332.0,8.25e-06]
[1673362888366,25.58541,1332.2,1332.0,8.25e-06]
[1673362890468,18.07894,1332.2,1332.0,8.25e-06]
[1673362890624,25.58541,1332.2,1332.0,8.25e-06]
[1673362890831,18.07894,1332.2,1332.0,8.25e-06]
[1673362891101,25.58541,1332.2,1332.0,8.25e-06]
[1673362891477,2.0,1332.1,1332.0,8.25e-06]
[1673362891727,9.50694,1332.1,1332.0,8.25e-06]
[1673362891976,7.57294,1332.1,1332.0,8.25e-06]
[1673362892868,0.066,1332.1,1332.0,8.25e-06]
[1673362893121,3.0,1332.2,1332.0,8.25e-06]
[1673362893498,10.50659,1332.2,1332.0,8.25e-06]
[1673362893748,10.57259,1332.2,1332.0,8.25e-06]
[1673362894616,18.07918,1332.2,1332.0,8.25e-06]
[1673362894760,25.58577,1332.2,1332.0,8.25e-06]
[1673362895601,2.5,1332.1,1332.0,8.25e-06]
[1673362895824,29.37082,1332.1,1332.0,8.25e-06]
[1673362896177,35.72038678,1332.1,1332.0,8.25e-06]
[1673362896388,43.35543076,1332.1,1332.0,8.25e-06]
[1673362896543,46.15602015,1332.1,1332.0,8.25e-06]
[1673362897018,32.1118372,1332.1,1332.0,8.25e-06]
[1673362897170,39.6187772,1332.1,1332.0,8.25e-06]
[1673362897381,38.86665819,1332.1,1332.0,8.25e-06]
[1673362897752,23.71205755,1332.1,1332.0,8.25e-06]
[1673362898142,31.21899755,1332.1,1332.0,8.25e-06]
[1673362898341,8.66717755,1332.1,1332.0,8.25e-06]
[1673362898574,5.66717755,1332.1,1332.0,1.02143737]
[1673362900119,5.66717755,1332.1,1332.0,16.03643737]
[1673362900323,5.66717755,1332.1,1332.0,23.60993737]
[1673362900536,5.66717755,1332.1,1332.0,8.59493737]
[1673362900910,5.66717755,1332.1,1332.0,11.09871509]
[1673362903157,5.66717755,1332.1,1332.0,39.08725146]
[1673362903369,5.66717755,1332.1,1332.0,38.61236286]
[1673362904473,5.66717755,1332.1,1332.0,37.49030073]
[1673362905103,5.66717755,1332.1,1332.0,38.61236286]
[1673362905748,5.66717755,1332.1,1332.0,29.98175186]
[1673362906003,5.66717755,1332.1,1332.0,16.98918933]
[1673362906317,5.66717755,1332.1,1332.0,25.60768933]
[1673362906488,5.66717755,1332.1,1332.0,18.10018933]
[1673362906700,5.66717755,1332.1,1332.0,25.60768933]
[1673362907068,5.66717755,1332.1,1332.0,19.9629494]
[1673362907372,5.66717755,1332.1,1332.0,26.1294494]
[1673362908319,5.66717755,1332.1,1332.0,35.49971107]
[1673362908473,5.66717755,1332.1,1332.0,20.48471107]
[1673362909305,5.66717755,1332.1,1332.0,3.79158192]
[1673362909517,13.17411755,1332.1,1332.0,3.72558192]
[1673362909774,20.68105755,1332.1,1332.0,3.72558192]
[1673362911357,13.17411755,1332.1,1332.0,3.72558192]
[1673362911536,28.18799755,1332.1,1332.0,3.72558192]
[1673362913235,13.17411755,1332.1,1332.0,3.72558192]
[1673362913837,20.68105755,1332.1,1332.0,3.72558192]
[1673362914194,13.17411755,1332.1,1332.0,3.72558192]
[1673362914563,20.68105755,1332.1,1332.0,3.72558192]
[1673362914768,28.18799755,1332.1,1332.0,3.72558192]
[1673362916808,32.53799755,1332.1,1332.0,1.92e-06]
[1673362917135,45.61345796,1332.1,1332.0,1.92e-06]
[1673362917454,46.98323796,1332.1,1332.0,1.92e-06]
[1673362917817,45.63323796,1332.1,1332.0,1.92e-06]
[1673362918288,42.14897978,1332.1,1332.0,1.92e-06]
[1673362918611,33.74647912,1332.1,1331.9,0.0804998]
[1673362918791,33.19565064,1332.0,1331.9,0.0804998]
[1673362919002,33.26165064,1332.0,1331.9,0.0804998]
[1673362919217,35.50220117,1332.0,1331.9,0.0804998]
[1673362919410,36.25432018,1332.0,1331.9,0.0804998]
[1673362919762,37.60432018,1332.0,1331.9,0.0804998]
[1673362920337,32.86376965,1332.0,1331.9,0.0804998]
[1673362921025,43.32766749,1332.0,1331.9,0.0804998]
[1673362921182,39.84344994,1332.0,1331.9,0.0804998]
[1673362921552,43.32806878,1332.0,1331.9,0.0804998]
[1673362921743,39.61344994,1332.0,1331.9,0.0804998]
[1673362922134,35.10444994,1332.0,1331.9,0.0804998]
[1673362923151,35.11971555,1332.0,1331.9,0.0804998]
[1673362923338,43.11377129,1332.0,1331.9,9.8e-06]
[1673362923495,53.65089298,1332.0,1331.9,9.8e-06]
[1673362923706,38.14967698,1332.0,1331.9,9.8e-06]
[1673362923957,50.78537698,1332.0,1331.9,9.8e-06]
[1673362924664,48.54469669,1332.0,1331.9,9.8e-06]
[1673362925436,54.26945004,1332.0,1331.9,9.8e-06]
[1673362925686,50.78438153,1332.0,1331.9,9.8e-06]
[1673362925959,26.14449691,1332.0,1331.9,9.8e-06]
[1673362926114,41.15949691,1332.0,1331.9,9.8e-06]
[1673362926539,33.65199691,1332.0,1331.9,9.8e-06]
[1673362926744,38.35953548,1332.0,1331.9,9.8e-06]
[1673362927169,45.86703548,1332.0,1331.9,9.8e-06]
[1673362927588,34.56187484,1332.0,1331.9,9.8e-06]
[1673362927849,40.69388484,1332.0,1331.9,9.8e-06]
[1673362928059,33.18638484,1332.0,1331.9,9.8e-06]
[1673362928271,40.69388484,1332.0,1331.9,9.8e-06]
[1673362929372,39.8042,1332.0,1331.9,9.8e-06]
[1673362929790,39.81946561,1332.0,1331.9,9.8e-06]
[1673362930006,43.61712625,1332.0,1331.9,9.8e-06]
[1673362932109,15.9317,1332.0,1331.9,9.8e-06]
[1673362932318,3.066,1332.0,1331.9,9.8e-06]
[1673362932529,3.0,1332.0,1331.9,9.8e-06]
[1673362932769,2.30656587,1332.1,1331.9,9.8e-06]
[1673362932770,40.80936587,1332.1,1331.9,9.8e-06]
[1673362934737,25.79530587,1332.1,1331.9,9.8e-06]
[1673362934947,33.30224587,1332.1,1331.9,9.8e-06]
[1673362935215,22.79530587,1332.1,1331.9,9.8e-06]
[1673362935430,37.80918587,1332.1,1331.9,9.8e-06]
[1673362937903,30.30224587,1332.1,1331.9,9.8e-06]
[1673362938147,22.79530587,1332.1,1331.9,9.8e-06]
[1673362938367,2.30656587,1332.1,1331.9,1.3450098]
[1673362938535,2.24056587,1332.1,1331.9,17.55147076]
[1673362938741,2.24056587,1332.1,1332.0,2.7]
[1673362939076,2.24056587,1332.1,1332.0,12.7075]
[1673362939249,2.24056587,1332.1,1332.0,5.266]
[1673362939464,2.24056587,1332.1,1332.0,7.90521935]
[1673362939728,2.24056587,1332.1,1332.0,5.40521935]
[1673362939939,2.24056587,1332.1,1332.0,4.05521935]
[1673362940091,2.24056587,1332.1,1332.0,1.35]
[1673362941147,2.24056587,1332.1,1331.9,2.60656076]
[1673362941358,2.24056587,1332.1,1331.9,0.5633098]
[1673362941622,9.74760587,1332.1,1331.9,0.5633098]
[1673362941842,9.81360587,1332.1,1331.9,0.5633098]
[1673362942302,2.30656587,1332.1,1331.9,0.5633098]
[1673362942511,2.24056587,1332.1,1331.9,3.0633098]
[1673362942752,2.24056587,1332.1,1331.9,2.63292297]
[1673362943502,2.24056587,1332.1,1331.9,0.5633098]
[1673362944354,24.76138587,1332.1,1331.9,9.8e-06]
[1673362944508,24.82738587,1332.1,1331.9,9.8e-06]
[1673362947188,28.32746648,1332.1,1331.9,9.8e-06]
[1673362947351,23.8725,1332.0,1331.9,9.8e-06]
[1673362947561,1.01804063,1331.9,1331.8,0.0804998]
[1673362947812,8.52611063,1331.9,1331.8,0.0804998]
[1673362947968,1.08404063,1331.9,1331.8,0.0804998]
[1673362948183,1.01804063,1331.9,1331.8,0.0804998]
[1673362948430,3.06299769,1331.9,1331.8,0.0804998]
[1673362948852,10.57106769,1331.9,1331.8,0.0804998]
[1673362949047,10.63706769,1331.9,1331.8,0.0804998]
[1673362949253,10.63706769,1331.9,1331.8,1.0964998]
[1673362949254,0.06804063,1331.9,1331.8,1.0964998]
[1673362949494,0.00204063,1331.9,1331.8,8.6051298]
[1673362949707,0.00204063,1331.9,1331.8,8.6711298]
[1673362949916,0.00204063,1331.9,1331.8,1.1624998]
[1673362950133,0.00204063,1331.9,1331.8,1.0964998]
[1673362951927,0.00204063,1331.9,1331.8,0.0804998]
[1673362953471,7.51011063,1331.9,1331.8,0.0804998]
[1673362953685,7.57611063,1331.9,1331.8,0.0804998]
[1673362954145,22.59225063,1331.9,1331.8,0.0804998]
[1673362954738,7.57611063,1331.9,1331.8,0.0804998]
[1673362954948,0.06804063,1331.9,1331.8,0.0804998]
[1673362955162,0.00204063,1331.9,1331.8,0.0804998]
[1673362955582,15.01818063,1331.9,1331.8,0.0804998]
[1673362955793,7.57611063,1331.9,1331.8,0.0804998]
[1673362956015,0.06804063,1331.9,1331.8,0.0804998]
[1673362956224,0.00204063,1331.9,1331.8,1.0964998]
[1673362956782,0.00204063,1331.9,1331.8,0.0804998]
[1673362957149,7.51011063,1331.9,1331.8,0.0804998]
[1673362957398,0.06804063,1331.9,1331.8,0.0804998]
[1673362957583,0.00204063,1331.9,1331.8,0.0804998]
[1673362957780,15.01818063,1331.9,1331.8,0.0804998]
[1673362957990,15.08418063,1331.9,1331.8,0.0804998]
[1673362958304,7.57611063,1331.9,1331.8,0.0804998]
[1673362958730,0.06804063,1331.9,1331.8,2.4444998]
[1673362958970,0.00204063,1331.9,1331.8,3.44788576]
[1673362959785,0.00204063,1331.9,1331.8,2.09988576]
[1673362960104,7.51011063,1331.9,1331.8,0.0804998]
[1673362960302,7.57611063,1331.9,1331.8,0.0804998]
[1673362960758,0.06804063,1331.9,1331.8,1.0964998]
[1673362960949,0.00204063,1331.9,1331.8,1.0964998]
[1673362961161,7.51011063,1331.9,1331.8,0.0804998]
[1673362961393,15.08418063,1331.9,1331.8,0.0804998]
[1673362961609,7.57611063,1331.9,1331.8,0.0804998]
[1673362962458,15.08418063,1331.9,1331.8,0.0804998]
[1673362964188,22.59225063,1331.9,1331.8,0.0804998]
[1673362964527,15.08418063,1331.9,1331.8,0.0804998]
[1673362964872,22.59225063,1331.9,1331.8,0.0804998]
[1673362965771,15.08418063,1331.9,1331.8,0.0804998]
[1673362966339,22.59225063,1331.9,1331.8,0.0804998]
[1673362967222,26.93825063,1331.9,1331.8,0.0804998]
[1673362967359,26.93825063,1331.9,1331.7,0.0804998]
[1673362967360,38.36931725,1331.9,1331.7,0.0804998]
[1673362967564,29.00826733,1331.8,1331.7,0.0804998]
[1673362967818,35.37192797,1331.8,1331.7,0.0804998]
[1673362967990,32.64166965,1331.8,1331.7,0.0804998]
[1673362968815,30.16190965,1331.8,1331.7,0.0804998]
[1673362970000,29.40979064,1331.8,1331.7,0.0804998]
[1673362970544,35.58736506,1331.8,1331.7,0.0804998]
[1673362970862,45.00171033,1331.8,1331.6,7.7e-06]
[1673362971091,10.01062127,1331.7,1331.6,7.7e-06]
[1673362971297,14.09897064,1331.7,1331.6,7.7e-06]